Cogmind - Beta 16 @@@ ROGUE MODE // 2025.11.09 @ 23:53:11 Player: shapeshifter Result: Self-destructed Performance ------------- Evolutions (6) 3000 Regions Visited (9) 1800 Robots Destroyed (57) 285 Value Destroyed (1360) 1360 Prototype IDs (56) 1120 Alien Tech Used (0) 0 Bonus (362) 362 TOTAL SCORE: 7927 Bonus ------- Follower Combat Kills 91 Aligned with FarCom 300 Friendly Fire -29 Cogmind --------- Core Integrity 911/1150 Matter 265/300 Energy 74/100 System Corruption 3% Temperature Cool (0) Movement Walking (190) Ox1 Location -4/Factory Parts ------- > --- POWER (2) -------- (None) > --- PROPULSION (7) --- Advanced Medium Treads Advanced Medium Treads Myomer Leg Myomer Leg Improved Gravmag System Combat Airjet Combat Gravmag System > --- UTILITY (8) ------ Advanced Cooling System High-capacity Storage Unit Experimental Sensor Array Improved Signal Interpreter Advanced Targeting Computer Advanced Transmission Jammer Jamming Amplifier > --- WEAPON (2) ------- Dual-blade Saw Dual-blade Saw > --- INVENTORY (20) --- Light Neutrino Core Light Antimatter Reactor Linear Gravjet Power Amplifier Advanced Heat Sink Superbattery (1500) Matter Compressor (250) Advanced Particle Charger Improved Weapon Cycler Stasis Canceller Graphene Brace Improved Shock Absorption System System Shield Chronowheel HERF Cannon AWS/Gauss Improved Remote Datajack Peak State ------------ > --- POWER ------------ Light Antimatter Reactor Light Antimatter Reactor > --- PROPULSION ------- Improved Gravmag System Combat Airjet Linear Gravjet Linear Gravjet Linear Gravjet Linear Gravjet Combat Gravmag System > --- UTILITY ---------- Power Amplifier Advanced Cooling System High-capacity Storage Unit Gravity Neutralizer Experimental Sensor Array Improved Signal Interpreter Advanced Transmission Jammer Jamming Amplifier > --- WEAPON ----------- Dual-blade Saw Dual-blade Saw > --- INVENTORY -------- Light Neutrino Core Light Antimatter Reactor Cooled Airjet Linear Gravjet Linear Gravjet Advanced Heat Sink Superbattery Matter Compressor Advanced Targeting Computer Advanced Particle Charger Improved Weapon Cycler Stasis Canceller Improved Shock Absorption System Chronowheel HERF Cannon AWS/Gauss Improved Remote Datajack Dual-blade Saw [Rating: 122] Favorites ----------- Power Heavy Ion Engine Engine Heavy Ion Engine Power Core Light Nuclear Core Reactor Light Antimatter Reactor Propulsion Titanium Leg Treads Light Treads Leg Titanium Leg Wheel Wheel Hover Unit Linear Gravjet Utility Large Storage Unit Device Improved Reaction Control System Storage Large Storage Unit Processor Advanced Targeting Computer Protection Core Shielding Weapon Light EM Pulse Cannon Energy Gun Small Laser Energy Cannon Light EM Pulse Cannon Ballistic Gun Subdweller Machine Gun Slashing Weapon Chainsword Special Melee Weapon Datajack Build | -11 -10 -10 -10 -9 -8 -7 -6 -5 -4 ------- Run | Yrd Mat Min Exi Min Mat Fac Fac Fac Fac Slots Evolved 12 | . . . . . 4 2 2 2 2 Power 1 | . . . . . . . . 1 . Propulsion 5 | . . . . . 1 1 1 1 1 Utility 6 | . . . . . 3 1 1 . 1 Weapon . | . . . . . . . . . . Parts Attached 92 | 7 16 1 2 4 8 8 10 19 17 Power 11 | 1 2 . . . . . 1 3 4 Engine 4 | 1 2 . . . . . . 1 . Core 3 | . . . . . . . 1 1 1 Reactor 4 | . . . . . . . . 1 3 Propulsion 31 | 2 2 1 . 2 3 4 3 8 6 Treads 5 | 2 . 1 . . . . . . 2 Leg 6 | . . . . . 3 1 . . 2 Wheel 4 | . 2 . . 2 . . . . . Hover 16 | . . . . . . 3 3 8 2 Flight . | . . . . . . . . . . Utility 28 | 2 4 . . . 4 2 6 6 4 Device 15 | 1 1 . . . 1 . 4 6 2 Storage 5 | 1 2 . . . 1 1 . . . Processor 5 | . . . . . 1 . 2 . 2 Hackware . | . . . . . . . . . . Protection 3 | . 1 . . . 1 1 . . . Artifact . | . . . . . . . . . . Weapon 22 | 2 8 . 2 2 1 2 . 2 3 Energy Gun 3 | 1 1 . . . 1 . . . . Energy Cannon 2 | . . . . 2 . . . . . Ballistic Gun 11 | 1 7 . 1 . . . . 2 . Ballistic Cannon . | . . . . . . . . . . Launcher . | . . . . . . . . . . Special Weapon . | . . . . . . . . . . Impact Weapon . | . . . . . . . . . . Slashing Weapon 5 | . . . . . . 2 . . 3 Piercing Weapon . | . . . . . . . . . . Special Melee Weapon 1 | . . . 1 . . . . . . Unidentified Prototypes 6 | . 1 . . . 2 1 . 2 . Parts Lost 13 | . 3 . . . . . . . 10 Power 2 | . . . . . . . . . 2 Propulsion 7 | . 1 . . . . . . . 6 Utility 3 | . 1 . . . . . . . 2 Weapon 1 | . 1 . . . . . . . . Highest Loss Streak 5 | . 1 . . . . . . . 5 To Critical Strikes . | . . . . . . . . . . Average Backups 13 | 3 10 14 14 12 13 13 13 17 18 Power 1 | . 1 2 1 1 1 1 . 1 2 Propulsion 2 | 2 2 4 4 1 . 1 . 3 2 Utility 4 | . 1 1 4 5 4 5 7 8 9 Weapon 3 | . 3 5 5 2 5 3 2 1 2 Tool/Special . | . . . . . . . . . . Unused Backups 39 | . 6 2 5 4 2 2 1 3 14 Power 6 | . 2 . 1 . . . 1 1 1 Propulsion 5 | . . 1 . 4 . . . . . Utility 13 | . 1 . 2 . . . . 1 9 Weapon 12 | . 3 1 2 . 2 2 . 1 1 Tool/Special 3 | . . . . . . . . . 3 Average Slot Usage (%) 95 | . 99 100 85 99 95 98 91 98 90 Engine 9 | . 14 14 14 14 9 7 . . . Core 1 | . . . . . . . 5 6 2 Treads 13 | . 20 25 28 26 . . . . . Leg 5 | . . . . . 24 29 6 . 1 Wheel 1 | . 7 2 . 1 1 . . . . Hover 7 | . . . . . . . 21 33 32 Device 7 | . 12 . . . . . 12 21 22 Storage 12 | . 14 14 14 14 17 15 7 5 5 Processor 3 | . . . . . 8 7 8 6 8 Protection 10 | . 1 14 14 14 16 21 12 4 . Energy Gun 2 | . 15 . . . . . . . . Energy Cannon 6 | . . . . 27 18 10 . . . Ballistic Gun 6 | . 12 28 4 . . . . 4 3 Slashing Weapon 2 | . . . . . . 4 13 6 4 Special Melee Weapon 1 | . . . 9 . . . . . . Peak Build Rating 122 | 7 13 15 29 29 32 47 63 101 122 Average Rating 36 | 4 8 14 16 18 30 39 55 89 110 On Entrance 32 | . 7 13 15 29 17 32 44 63 101 Avg Prop Armor Cover (%) 7 | . . . . 10 . 4 7 4 12 Naked Turns . | . . . . . . . . . . Heaviest Build 83 | 14 37 37 39 39 43 63 51 74 83 Greatest Support 88 | 40 40 42 42 42 51 68 51 75 88 Greatest Overweight (x) 3 | . 1 1 . 3 2 . 2 1 1 Average Overweight (x) . | . . . . . . . . . . Largest Inventory Capacity 20 | 8 15 15 15 15 15 20 15 20 20 Average Capacity 15 | 7 14 15 15 15 15 16 15 18 20 Most Carried 20 | 7 15 15 15 15 15 15 15 20 20 Average Carried 14 | 4 10 14 14 13 14 14 14 18 19 Final Capacity 20 | 8 15 15 15 15 15 15 15 20 20 Final Carried 20 | 4 15 14 15 12 15 15 15 20 18 Class Distribution -------------------- 77% | Mutant 14% | Scavenger-Mutant 5% | Sprinter 3% | Scavenger-Sprinter Dominant Class ---------------- Mutant | -10/Materials Mutant | -10/Mines Mutant | -10/Exiles Mutant | -9/Mines Mutant | -8/Materials Mutant | -7/Factory Scavenger-Mutant | -6/Factory Scavenger-Mutant | -5/Factory Sprinter | -4/Factory Resources | -11 -10 -10 -10 -9 -8 -7 -6 -5 -4 ----------- Run | Yrd Mat Min Exi Min Mat Fac Fac Fac Fac Matter Collected 1980 | 221 257 164 30 67 145 118 135 335 508 Remotely . | . . . . . . . . . . Salvage Created 1999 | 24 628 77 . 244 151 179 38 266 392 Parts 140 | 3 42 21 . 18 11 10 6 4 25 Haulers Intercepted 2 | . 1 . . . . . . 1 . Recyclers Shooed 2 | . 1 . . . . . . . 1 Parts Field Recycled . | . . . . . . . . . . Retrieved Matter . | . . . . . . . . . . Parts Self-Destructed . | . . . . . . . . . . Prevented . | . . . . . . . . . . Parts Restored . | . . . . . . . . . . Kills | -11 -10 -10 -10 -9 -8 -7 -6 -5 -4 ------- Run | Yrd Mat Min Exi Min Mat Fac Fac Fac Fac Combat Hostiles Destroyed 42 | . 17 7 . 3 2 1 . 4 8 Guns 36 | . 17 7 . . . . . 4 8 Cannons 6 | . . . . 3 2 1 . . . Classes Destroyed 12 | 1 5 . . 2 1 1 . . 2 Worker 4 | . . . . 1 . 1 2 . . Builder 1 | . . . . 1 . . . . . Tunneler 3 | 1 . . . 2 . . . . . Hauler 2 | . 1 . . . . . . 1 . Recycler 3 | . . . . . . 2 . . 1 Watcher 2 | . 1 . . . 1 . . . . Swarmer 21 | . 6 7 . . . 1 . 2 5 Cutter 2 | . . . . . . . . . 2 Grunt 13 | . 8 . . 3 . . . 2 . Sentry 2 | . . . . . 2 . . . . Hunter 1 | . . . . . . . . . 1 Subdweller 3 | . 3 . . . . . . . . Best Kill Streak 5 | 1 3 3 . 3 1 3 1 2 5 Combat Bots Only 5 | . 3 3 . 3 1 1 . 2 5 Max Kills in Single Turn 2 | 1 1 2 . 2 1 1 1 1 1 Gunslinging 1 | . . 1 . . . . . . . Exploded . | . . . . . . . . . . Melee . | . . . . . . . . . . Uniques/NPCs Destroyed . | . . . . . . . . . . Combat | -11 -10 -10 -10 -9 -8 -7 -6 -5 -4 -------- Run | Yrd Mat Min Exi Min Mat Fac Fac Fac Fac Hostile Shots Fired 292 | . 106 23 . 23 2 16 14 8 100 Missed 96 | . 34 8 . 8 1 8 4 2 31 Hits 196 | . 72 15 . 15 1 8 10 6 69 Melee 1 | . . . . . . . . . 1 Projectile 195 | . 72 15 . 15 1 8 10 6 68 AOE 4 | . . . . . . . . . 4 Critical Strikes 9 | . 1 . . 1 . . . 1 6 Actively Blocked 1 | . . . . . . . . 1 . Part Disruptions 1 | . . . . . . . . . 1 Damage Taken 3464 | . 808 115 . 117 15 120 364 92 1833 Core 545 | . 191 22 . 18 12 . 63 . 239 Absorbed by Shields . | . . . . . . . . . . Redirected to Shielding 99 | . . 4 . 3 3 . 69 9 11 Core Remaining (%) 82 | 100 . . . 7 97 100 92 100 . Volleys Fired 118 | 1 75 18 . 6 5 1 . 12 . Largest 2 | 2 2 2 . 2 2 2 . 1 . Hottest 112 | 60 90 60 . 112 112 112 . 30 . Shots Fired 271 | 2 147 36 . 13 10 2 . 12 49 Gun 246 | 2 147 36 . . . . . 12 49 Cannon 25 | . . . . 13 10 2 . . . Launcher . | . . . . . . . . . . Special . | . . . . . . . . . . Kinetic 153 | 1 55 36 . . . . . 12 49 Thermal 93 | 1 92 . . . . . . . . Explosive . | . . . . . . . . . . Electromagnetic 25 | . . . . 13 10 2 . . . Robot Hit Streak 13 | 2 13 6 . 7 5 6 . 9 11 Robot Miss Streak 5 | . 4 5 . 2 1 . . 2 4 Penetration Max 1 | . . . . . . . . 1 . Secondary Targets 6 | . 2 4 . . . . . . . Max Gunslinging Chain 1 | . 1 1 . . . . . . . Autonomous 50 | . . . . . . . . . 50 Shots Hit Robots 204 | 2 95 16 10 7 9 5 4 15 41 Core Hits 86 | 1 34 7 . 8 5 4 2 8 17 Critical Kills . | . . . . . . . . . . Critical Parts Destroyed 1 | . . . . . . . . 1 . Critical Strikes 7 | . 1 . . 1 . . . 1 4 Burn 1 | . 1 . . . . . . . . Destroy 1 | . . . . . . . . 1 . Corrupt 1 | . . . . 1 . . . . . Sever 4 | . . . . . . . . . 4 Melee Attacks 44 | . . . 10 . 1 4 6 9 14 Impact . | . . . . . . . . . . Slashing 33 | . . . . . . 4 6 9 14 Piercing . | . . . . . . . . . . Sneak Attacks 20 | . . . 10 . 1 3 2 2 2 Combat Hostiles . | . . . . . . . . . . Follow-up Attacks 3 | . . . . . . . . 1 2 Damage Inflicted 4142 | 21 1116 339 . 210 190 263 207 610 1186 Guns 2558 | 21 1059 339 . . . . . 262 877 Cannons 436 | . . . . 210 190 36 . . . Explosions 57 | . 57 . . . . . . . . Melee 1089 | . . . . . . 225 207 348 309 Ramming 2 | . . . . . . 2 . . . Kinetic 1889 | 11 400 339 . . . . . 262 877 Thermal 669 | 10 659 . . . . . . . . Explosive . | . . . . . . . . . . Electromagnetic 493 | . 57 . . 210 190 36 . . . Impact . | . . . . . . . . . . Slashing 1089 | . . . . . . 225 207 348 309 Piercing . | . . . . . . . . . . Highest Corruption 3 | . 1 1 1 1 . . 1 . 3 Average Corruption 1 | . 1 1 1 1 . . 1 . 1 Corruption Purged . | . . . . . . . . . . Corruption Blocked . | . . . . . . . . . . Effects 20 | . 2 6 4 5 . . 2 . 1 Message Errors 4 | . 1 1 1 . . . 1 . . Matter Fused 3 | . . 1 . 1 . . 1 . . Heat Flow Errors 4 | . . 1 1 2 . . . . . Energy Discharges 3 | . . . 1 1 . . . . 1 Data Loss (minor) 3 | . 1 1 1 . . . . . . Misfires 2 | . . 1 . 1 . . . . . Weapon Failures 1 | . . 1 . . . . . . . Overload Shots . | . . . . . . . . . . Overflow Damage 86 | . . . . . 5 . 5 30 46 Projectiles 5 | . . . . . 5 . . . . Explosions . | . . . . . . . . . . Melee 81 | . . . . . . . 5 30 46 Knockbacks . | . . . . . . . . . . Impact . | . . . . . . . . . . Kinetic . | . . . . . . . . . . Secondary . | . . . . . . . . . . Self-Inflicted Damage . | . . . . . . . . . . Shots . | . . . . . . . . . . Rammed . | . . . . . . . . . . Targets Rammed 1 | . . . . . . 1 . . . Kicked 1 | . . . . . . 1 . . . Crushed . | . . . . . . . . . . Highest Temperature 321 | . 252 277 228 321 72 42 . 179 6 Average Temperature 68 | . 73 36 121 99 31 24 . 85 3 Received Heat Transfer 469 | . 255 . . . 9 18 81 . 106 Effects 2 | . . . . 2 . . . . . Matter Decay 1 | . . . . 1 . . . . . Short Circuit 1 | . . . . 1 . . . . . Siege Activations . | . . . . . . . . . . Martial Activations . | . . . . . . . . . . Shielding Activations . | . . . . . . . . . . Robots Disrupted . | . . . . . . . . . . Combat Hostiles . | . . . . . . . . . . Robots Corrupted . | . . . . . . . . . . Combat Hostiles . | . . . . . . . . . . Parts Fried . | . . . . . . . . . . Impact Corruptions . | . . . . . . . . . . Robots Melted . | . . . . . . . . . . Combat Hostiles . | . . . . . . . . . . Parts Melted 7 | . 4 . . . . . . 2 1 Heat Transferred 1681 | 25 1656 . . . . . . . . Parts Sabotaged . | . . . . . . . . . . Parts Stolen . | . . . . . . . . . . Parts Stripped . | . . . . . . . . . . Power Chain Reactions . | . . . . . . . . . . Alert | -11 -10 -10 -10 -9 -8 -7 -6 -5 -4 ------- Run | Yrd Mat Min Exi Min Mat Fac Fac Fac Fac Maximum Alert Level . | . . . . . . . . . . Low Security (%) 100 | 100 100 100 . 100 100 100 100 100 100 Level 1 . | . . . . . . . . . . Level 2 . | . . . . . . . . . . Level 3 . | . . . . . . . . . . Level 4 . | . . . . . . . . . . Level 5 . | . . . . . . . . . . High Security . | . . . . . . . . . . Max Security . | . . . . . . . . . . Peak Influence 144 | 5 100 87 . 129 57 10 15 105 144 Initial 35 | . . 10 . . 35 . . . . Average 19 | 1 35 17 . 19 12 . . 28 34 Influence Increases 1429 | 5 433 182 . 179 129 35 39 160 267 Destroy 0b10 Robot/C 880 | . 280 140 . 120 80 20 . 80 160 Destroy 0b10 Robot/NC 75 | 5 10 . . 20 5 15 10 5 5 Destroy Leader 178 | . 64 20 . 20 32 . . 22 20 Allied During Kill 11 | . . . . 4 7 . . . . Successful Hack 94 | . 18 . . . 5 . 14 31 26 Select Force Hacks 30 | . 30 . . . . . . . . Disable Machine 45 | . 30 . . . . . 15 . . Destroy Structure 86 | . 1 7 . . . . . 22 56 Partial Spotted 15 | . . 15 . . . . . . . Lose Combat Pursuer 15 | . . . . 15 . . . . . Influence Decreases 1319 | 5 405 210 . 87 221 35 39 160 157 Entered New Map 75 | . . 18 . . 57 . . . . Time Decay 1154 | 5 375 192 . 87 144 35 39 160 117 Lost Part 70 | . 30 . . . . . . . 40 Lost Ally 20 | . . . . . 20 . . . . Squads Dispatched 28 | . 4 1 . . 3 3 7 4 6 Investigation 5 | . 3 1 . . 1 . . . . Extermination 4 | . . . . . . 1 2 . 1 Reinforcement 15 | . 1 . . . 2 1 2 4 5 Assault . | . . . . . . . . . . Garrison 4 | . . . . . . 1 3 . . Intercept . | . . . . . . . . . . Searches Triggered . | . . . . . . . . . . Construction Impeded 1 | . . . . . . . . . 1 Haulers Reinforced 1 | . . . . . . . . 1 . Active Scanning Responses . | . . . . . . . . . . Cargo Convoy Interrupts . | . . . . . . . . . . Stealth | -11 -10 -10 -10 -9 -8 -7 -6 -5 -4 --------- Run | Yrd Mat Min Exi Min Mat Fac Fac Fac Fac Distress Signals 10 | . . 1 . . 2 . 1 1 5 Communications Jammed 1 | . . . . . . . . . 1 Distress Signals . | . . . . . . . . . . Times Spotted 140 | . 24 7 . 5 14 16 19 17 38 Peak Tracking Total 12 | . 5 3 . 3 7 4 4 5 12 Tactical Retreats 2 | . 1 . . 1 . . . . . Traps | -11 -10 -10 -10 -9 -8 -7 -6 -5 -4 ------- Run | Yrd Mat Min Exi Min Mat Fac Fac Fac Fac Traps Triggered 6 | . 3 . . . . . 1 1 1 Indirectly . | . . . . . . . . . . Trap Hack Attempts . | . . . . . . . . . . Triggered . | . . . . . . . . . . Disarmed . | . . . . . . . . . . Reprogrammed . | . . . . . . . . . . Reused . | . . . . . . . . . . Traps Extracted . | . . . . . . . . . . Installed . | . . . . . . . . . . Triggered . | . . . . . . . . . . Machines | -11 -10 -10 -10 -9 -8 -7 -6 -5 -4 ---------- Run | Yrd Mat Min Exi Min Mat Fac Fac Fac Fac Machines Disabled 3 | . 2 . . . . . 1 . . Max in Single Turn 2 | . 2 . . . . . 1 . . Machines Repaired . | . . . . . . . . . . Machines Dismantled . | . . . . . . . . . . Machines Sabotaged . | . . . . . . . . . . Overloaded Fab Kills . | . . . . . . . . . . Hacking | -11 -10 -10 -10 -9 -8 -7 -6 -5 -4 --------- Run | Yrd Mat Min Exi Min Mat Fac Fac Fac Fac Machines Accessed 27 | . 8 1 2 . 3 2 4 4 3 Terminals 17 | . 7 . . . 2 1 2 4 1 Fabricators . | . . . . . . . . . . Repair Stations . | . . . . . . . . . . Recycling Units 2 | . 1 . . . . . . . 1 Scanalyzers 4 | . . . . . 1 . 2 . 1 Garrison Access 1 | . . . . . . 1 . . . Total Hacks 71 | . 23 1 3 . 8 3 11 13 9 Successful 29 | . 10 1 3 . 4 . 4 4 3 Failed 39 | . 13 . . . 3 3 6 9 5 Catastrophic 7 | . 1 . . . . 2 1 2 1 Database Lockouts 3 | . . . . . 1 . 1 . 1 Manual 30 | . 20 . 1 . . . 4 5 . Terminals 48 | . 21 . . . 4 2 5 13 3 Fabricators . | . . . . . . . . . . Repair Stations . | . . . . . . . . . . Recycling Units 4 | . 2 . . . . . . . 2 Scanalyzers 14 | . . . . . 4 . 6 . 4 Garrison Access 1 | . . . . . . 1 . . . Terminal Hacks 14 | . 3 1 3 . 2 . 1 3 1 Record 2 | . . . 2 . . . . . . Prototype ID Bank 1 | . 1 . . . . . . . . Open Door 1 | . . 1 . . . . . . . Emergency Access Points 1 | . . . . . . . . 1 . Terminal Index 1 | . . . . . 1 . . . . Transport Status 1 | . . . . . . . . 1 . Registered Components 1 | . . . . . . . 1 . . Zone Layout 5 | . 2 . . . 1 . . 1 1 Proto ID Catalog 1 | . . . 1 . . . . . . Fabricator Hacks . | . . . . . . . . . . Repair Station Hacks . | . . . . . . . . . . Recycling Unit Hacks 2 | . 1 . . . . . . . 1 Retrieve Components 2 | . 1 . . . . . . . 1 Scanalyzer 6 | . . . . . 2 . 3 . 1 Retrieve Study 6 | . . . . . 2 . 3 . 1 Garrison Access Hacks . | . . . . . . . . . . Unauthorized Hacks 7 | . 6 . . . . . . 1 . Terminals 6 | . 5 . . . . . . 1 . Assimilate 1 | . . . . . . . . 1 . Skim 5 | . 5 . . . . . . . . Fabricators . | . . . . . . . . . . Repair Stations . | . . . . . . . . . . Recycling Units 1 | . 1 . . . . . . . . Tunnel 1 | . 1 . . . . . . . . Scanalyzers . | . . . . . . . . . . Garrison Access . | . . . . . . . . . . Data Cores Recovered 2 | . . . . . . . 1 1 . Used . | . . . . . . . . . . Hacking Detections 20 | . 5 . . . 3 2 3 4 3 Full Trace Events . | . . . . . . . . . . Feedback Events . | . . . . . . . . . . Feedback Blocked . | . . . . . . . . . . Robot Schematics Acquired . | . . . . . . . . . . Robots Built . | . . . . . . . . . . Authchips . | . . . . . . . . . . Time . | . . . . . . . . . . Total Robot Build Rating . | . . . . . . . . . . Part Schematics Acquired . | . . . . . . . . . . Parts Built . | . . . . . . . . . . Authchips . | . . . . . . . . . . Time . | . . . . . . . . . . Total Part Build Rating . | . . . . . . . . . . Part Studies Acquired 6 | . . . . . 2 . 3 . 1 Parts Repaired . | . . . . . . . . . . Time . | . . . . . . . . . . Parts Recycled . | . . . . . . . . . . Recycled Matter . | . . . . . . . . . . Retrieved Matter . | . . . . . . . . . . Retrieved Components 3 | . 1 . . . . . . . 2 Parts Scanalyzed . | . . . . . . . . . . Part Schematics Acquired . | . . . . . . . . . . Parts Damaged . | . . . . . . . . . . Bothacking | -11 -10 -10 -10 -9 -8 -7 -6 -5 -4 ------------ Run | Yrd Mat Min Exi Min Mat Fac Fac Fac Fac Used RIF Installer . | . . . . . . . . . . Robots Hacked 5 | . . . 4 . 1 . . . . Non-combat 3 | . . . 3 . . . . . . Combat 2 | . . . 1 . 1 . . . . Robot Hacks Applied 11 | . . . 10 . 1 . . . . parse_system 11 | . . . 10 . 1 . . . . Relay Couplers Released . | . . . . . . . . . . Fabnet Peak Effective % . | . . . . . . . . . . Robots Rewired . | . . . . . . . . . . Allies Hacked . | . . . . . . . . . . Hacks Repelled . | . . . . . . . . . . Allies | -11 -10 -10 -10 -9 -8 -7 -6 -5 -4 -------- Run | Yrd Mat Min Exi Min Mat Fac Fac Fac Fac Total Allies 1 | . . . . 1 . . . . . Largest Group 1 | . . . . 1 1 . . . . Highest-Rated Group 31 | . . . . 31 31 . . . . Highest-Rated Ally 31 | . . . . 31 31 . . . . Total Orders . | . . . . . . . . . . Ally Attacks 21 | . . . . 13 8 . . . . Total Damage 235 | . . . . 129 106 . . . . Kills 5 | . . . . 3 2 . . . . Allies Corrupted . | . . . . . . . . . . Allies Melted . | . . . . . . . . . . Intel | -11 -10 -10 -10 -9 -8 -7 -6 -5 -4 ------- Run | Yrd Mat Min Exi Min Mat Fac Fac Fac Fac Active Infowar (turns) 1989 | 25 665 . . . 1 . 210 556 532 Sensors 1299 | . . . . . 1 . 210 556 532 Seismic 690 | 25 665 . . . . . . . . Jamming 117 | . . . . . . . . . 117 Robot Analysis Total . | . . . . . . . . . . Derelict Logs Recovered 4 | . . 1 . 3 . . . . . Drone Launches . | . . . . . . . . . . Drone Recoveries . | . . . . . . . . . . Exploration | -11 -10 -10 -10 -9 -8 -7 -6 -5 -4 ------------- Run | Yrd Mat Min Exi Min Mat Fac Fac Fac Fac Turns Passed 6705 | 74 1107 846 674 1062 634 425 795 556 532 Spaces Moved 4365 | 43 587 527 423 629 351 280 632 454 439 Core 13 | 13 . . . . . . . . . Treads 1887 | 30 366 479 423 583 . . . . 6 Legs 727 | . . . . . 314 280 105 . 28 Wheels 352 | . 221 48 . 46 37 . . . . Hover 1386 | . . . . . . . 527 454 405 Flight . | . . . . . . . . . . Fastest Speed 31 | 50 90 105 152 95 95 115 45 33 31 Average Speed 109 | 126 136 147 152 153 116 115 60 40 53 Slowest Speed 270 | 160 160 152 152 240 270 115 255 115 190 Overloaded Moves . | . . . . . . . . . . Propulsion Burnouts . | . . . . . . . . . . Robots Hopped . | . . . . . . . . . . Potential Cave-ins . | . . . . . . . . . . Cave-ins Triggered . | . . . . . . . . . . Exploration Rate (%) 44 | 4 83 88 70 97 40 11 19 18 12 Regions Visited 9 Branch Regions 3 Pre-discovered Areas 2 | . 1 . 1 . . . . . . Known Exits Taken 2 | . . . . . . . 1 1 . Unknown Exits Taken 7 | 1 1 1 1 1 1 1 . . . Scrap Searched 4 | . . 2 . 2 . . . . . Spaces Dug 2 | . . . . . . . . 2 . Terrain Destroyed 46 | . . 7 . . . . . 11 28 Melee 2 | . . . . . . . . 2 . Projectile 44 | . . 7 . . . . . 9 28 AOE . | . . . . . . . . . . Terrain Rammed . | . . . . . . . . . . Walls Destroyed . | . . . . . . . . . . Machines Disabled . | . . . . . . . . . . Actions | -11 -10 -10 -10 -9 -8 -7 -6 -5 -4 --------- Run | Yrd Mat Min Exi Min Mat Fac Fac Fac Fac Total 6049 | 61 759 560 454 717 565 374 1041 802 716 Wait 1174 | . 34 7 . 68 186 66 356 272 185 Move 4356 | 42 586 526 422 628 350 279 631 453 439 Hop . | . . . . . . . . . . Pick Up 112 | 11 29 3 9 4 7 6 8 15 20 Fast Attach 27 | . 2 . 1 . 4 2 5 7 6 Attach 50 | 7 8 . . 4 3 2 7 3 16 Detach 10 | . . . 1 . 1 . 2 1 5 Swap 49 | . 6 2 1 . 4 8 1 14 13 Drop 100 | . 19 4 10 7 4 6 13 17 20 Fire 118 | 1 75 18 . 6 5 1 . 12 . Melee 39 | . . . 10 . 1 3 5 8 12 Ram . | . . . . . . . . . . Kick 1 | . . . . . . 1 . . . Crush . | . . . . . . . . . . Escape Stasis 13 | . . . . . . . 13 . . Rewire . | . . . . . . . . . . Trap . | . . . . . . . . . . Miscellaneous . | . . . . . . . . . . Route ------- -11/Scrapyard -10/Materials (discovered 4 exits: [*Mat x2] / *Min x2) -10/Mines (discovered 4 exits: [*Mat x2] / *Exi / [*Sub]) -10/Exiles -9/Mines (discovered 2 exits: *Mat x2) -8/Materials -7/Factory -6/Factory -5/Factory (discovered 2 exits: *Fac x2) -4/Factory History --------- Turn | Location | Event 9 | -11/Scrapyard | Discovered new exit (range 16) 75 | -11/Scrapyard | Entered Materials 318 | -10/Materials | Build established: Mutant 482 | -10/Materials | Discovered new exit (range 5) 587 | -10/Materials | Discovered new exit (range 15) 624 | -10/Materials | Discovered new exit (range 16) 750 | -10/Materials | Core integrity fell below 50% 775 | -10/Materials | Derelicts attacked the area 949 | -10/Materials | Discovered new exit (range 16) 1102 | -10/Materials | Learned 4 Subcaves zone layouts 1148 | -10/Materials | Learned location of 1 exit from Recycling 1182 | -10/Materials | Entered Mines 1199 | -10/Mines | Core integrity fell below 20% 1243 | -10/Mines | Met a Derelict shopkeep closing up shop 1480 | -10/Mines | Discovered new exit (range 11) 1621 | -10/Mines | Discovered new exit (range 6) 1707 | -10/Mines | Learned Materials trap positions 1764 | -10/Mines | Deemed a non-threat by the Exiles lab entrance 1764 | -10/Mines | Discovered new exit (range 5) 1883 | -10/Mines | Discovered new exit (range 8) 2028 | -10/Mines | Entered Exiles 2068 | -10/Exiles | Met 8R-AWN 2094 | -10/Exiles | Met EX-HEX 2175 | -10/Exiles | Met EX-DEC 2217 | -10/Exiles | Learned location of Zion (-7) 2357 | -10/Exiles | Met EX-BIN 2480 | -10/Exiles | Aligned with FarCom system 2482 | -10/Exiles | Given EX-Vault access code 2517 | -10/Exiles | Opened EX-Vault 2526 | -10/Exiles | Found Superbattery 2529 | -10/Exiles | Found AWS/Gauss 2540 | -10/Exiles | Found Chronowheel 2596 | -10/Exiles | Warned to stay clear of 0b10 Research branches 2690 | -10/Exiles | Discovered new exit (range 10) 2702 | -10/Exiles | Stole three prototypes: AWS/Gauss, Superbattery, Chronowheel 2702 | -10/Exiles | Entered Mines 2946 | -9/Mines | Found a hidden stash of uninstalled traps 2961 | -9/Mines | Discovered new exit (range 10) 3094 | -9/Mines | Learned 2 Materials zone layouts 3121 | -9/Mines | Discovered new exit (range 10) 3211 | -9/Mines | Found a damaged Exp. Sensor Array with a note attached 3216 | -9/Mines | Found Prototype Device 3419 | -9/Mines | Learned Materials non-interactive machine intel 3552 | -9/Mines | Escorted by a lone wolf Derelict 3764 | -9/Mines | Entered Materials 3764 | -8/Materials | Accompanied by 1 ally 3764 | -8/Materials | Evolved 4 slots: Propulsion x1, Utility x3 3766 | -8/Materials | Loaded intel: 24 trap records 3767 | -8/Materials | Loaded intel: 41 non-interactive machine locations 3792 | -8/Materials | Identified Exp. Sensor Array 3905 | -8/Materials | Met 7R-MNS 3913 | -8/Materials | Central database locked down 4370 | -8/Materials | Discovered new exit (range 15) 4398 | -8/Materials | Entered Factory 4398 | -7/Factory | Evolved 2 slots: Propulsion x1, Utility x1 4399 | -7/Factory | Caught up to 7R-MNS 4400 | -7/Factory | FarCom data flow suspended 4489 | -7/Factory | Found Powered Armor 4494 | -7/Factory | Found Powered Armor 4710 | -7/Factory | Discovered new exit (range 16) 4737 | -7/Factory | Garrison activated, responded to threat 4823 | -7/Factory | Entered another Factory area 4823 | -6/Factory | Evolved 2 slots: Propulsion x1, Utility x1 4824 | -6/Factory | Caught up to 7R-MNS 4914 | -6/Factory | Garrison activated, responded to threat 5298 | -6/Factory | Build established: Scavenger-Mutant 5394 | -6/Factory | Central database locked down 5592 | -6/Factory | Discovered new exit (range 15) 5611 | -6/Factory | Identified exit to Factory 5618 | -6/Factory | Entered another Factory area 5618 | -5/Factory | Evolved 2 slots: Power x1, Propulsion x1 5619 | -5/Factory | Caught up to 7R-MNS 6152 | -5/Factory | Discovered new exit (range 5) 6157 | -5/Factory | Discovered new exit (range 15) 6164 | -5/Factory | Identified exit to Factory 6174 | -5/Factory | Entered another Factory area 6174 | -4/Factory | Evolved 2 slots: Propulsion x1, Utility x1 6175 | -4/Factory | Caught up to 7R-MNS 6258 | -4/Factory | Central database locked down 6554 | -4/Factory | Lost 5 parts (4n1u) 6654 | -4/Factory | AWS/Gauss suddenly broke down 6706 | -4/Factory | Self-destructed Last Messages --------------- 06672_ Acquired Adv. Medium Treads. 06674_ K-01 Serf cleans the Machine. 06681_ U-05 Engineer lays Concrete. 06688_ W-44 Eye sends out distress signal. 06688_ Dual-blade Saw follow-up attack on P-70 Sage. 06689_ U-05 Engineer builds a Wall. 06690_ R-10 Processor collects Lgt. Antimatter Reactor. 06692_ U-05 Engineer builds a Wall. 06693_ P-70 Sage Antigrav System severed. 06694_ U-05 Engineer builds a Wall. 06696_ U-05 Engineer builds a Door. 06697_ Door malfunctions. 06697_ W-44 Eye sends out distress signal. 06697_ R-10 Processor collects Lgt. Nuclear Core+. 06701_ Lgt. Antimatter Reactor destroyed. 06703_ U-05 Engineer builds a Wall. 06705_ System corrupted: Energy discharge (-20). 06705_ Penetrated by Slug. Map ----- +----------------------------------------------------+ | ?????????????????????????????????????????????????? | | ?????????????????????????????????????????????????? | | ????????????????????????? ?????????????????????? | | ???????????????????????" ?????????????????????? | | ???????????????????????" ?????????????????????? | | ??????????????????????"" ????? [??????????????? | | ??????????????????????? #####"###????????????? | | ???????????????????????" ?????????????? | | ???????????????????????? ??????????????? | | ??????????? ??????????? ??????????????? | | ????????? ??????????? ???????????????? | | ????????# ???????????? ????????????????? | | ????????# #???????????# #????????????????? | | ????????# T???????????# #????????????????? | | ????????# ???????????# %#????????????????? | | ????????# #??????????## % #????????????????? | | ????????# #??????????#" * #????????????????? | | ????????# ############# #????????????????? | | ????????# # ! # #????????????????? | | ????????# # u# #??????? ???????? | | ????????# # # ##??[[ "????????? | | ????????# # u # u ###""" "#???????? | | ????????# # u p # w #" "# ??????? | | ????????# + ! #hp / w ?????? | | ????????# # % RR u / ???????? | | #######?# # @#= % / ???????? | | # #?# [* # # % #" "????????? | | # [ ### # # ###??????????????? | | " %[/ % + # ##???????????????? | | # ! ######### # ##???????????????? | | # #???????#! # ##???????????????? | | # #??????############## =#????????????????? | | # #??????##???????????# = #????????????????? | | ###+###???????????????????# #????????????????? | | #?# #?????????????????????# #????????????????? | | ### #?????????????????????# #????????????????? | | ## ####??????????????????# #????????????????? | | =%! #??????????????????+ #????????????????? | | == #??????????????????# #????????????????? | | #??????????????????# #????????????????? | | +???????????????# #????????????????? | | ## "######???????????????# #????????????????? | | ### ##????????????????????# #????????????????? | | ## #?????????????????????# ?????????????????? | | ## #?????????????????????# ?????????????????? | | #"#+#####?????????????????? ?????????????????? | | ## #???????????????????? ?????????????????? | | ## #????????????????????????????????????????? | | ##== #????????????????????????????????????????? | | ##= #????????????????????????????????????????? | +----------------------------------------------------+ Best States ------------- Heat Dissipation 74 Energy Generation 43 Energy Capacity 280 Matter Stores 500 Matter Capacity 500 Sight Range 16 Robot Scan Range 20 Terrain Scan Density 10 Jamming Range 16 Power Amplification 20 Additional Mass Support 12 Armor Coverage 400 Core Shielding 20 Utility Shielding 66 Evasion (%) 68 Targeting Accuracy 8 Target Analysis 5 Recoil Reduction 2 Item Schematics ----------------- None Robot Schematics ------------------ None Fabricated ------------ Nothing Repaired ---------- Nothing Studied --------- Titanium Leg | -8/Materials | Hacked Lgt. EM Pulse Cannon | -8/Materials | Hacked Gravmag System | -6/Factory | Hacked Lgt. Nuclear Core | -6/Factory | Hacked Gravmag Array | -6/Factory | Hacked Linear Gravjet | -4/Factory | Hacked Alien Tech Used ----------------- None Achievements -------------- None Challenges ------------ None Game ------ Seed TerrabombDisassembledLattice Manual? 0 Play Time 01:00:15 Cumulative 485.2 hours Start 2025.11.09 @ 19:27:54 End 2025.11.09 @ 23:53:11 Sessions 5 Manual Loads 0 Difficulty Rogue Special Mode None Game No. 633 Rogue 633 Adventurer 0 Explorer 0 Win Type - Total 15 Types 7/0/2/2/1/0/2/1/0/0 Lore% 90 Gallery% 85 Achievement% 64 Wizard Run 0 Options --------- Layout 0 ASCII 0 Keyboard 0 Movement Mouse Keybinds 0 Fullscreen 1 Font 24/Terminus Map View 76x50 Zoom Use 0% Tactical HUD 1 Map Filters NONE Filters NONE Steam 1 RUN: 463401b9-76a1-422d-9e75-f29e98ef7fdf